bitfinex/quotes_SOLUSD_20251030
["timestamp","ask_amount","ask_price","bid_price","bid_amount"]
[1761844847976,11.5,184.15,184.1,8.55387519]
[1761844847977,20.05387519,184.15,184.1,8.55387519]
[1761844848298,8.55387519,184.14,184.09,8.55387519]
[1761844848495,11.5,184.15,184.09,9.23387519]
[1761844848673,20.05387519,184.15,184.09,0.68]
[1761844848878,8.55387519,184.12,184.06,0.68]
[1761844849085,8.55387519,184.11,184.06,0.68]
[1761844849396,20.55387519,184.1,184.05,20.592]
[1761844849571,8.55387519,184.08,184.03,9.23387519]
[1761844850078,8.55387519,184.07,184.03,0.68]
[1761844850278,8.55387519,184.06,184.03,0.68]
[1761844850521,11.48,184.05,184.03,0.68]
[1761844850701,11.48,184.04,184.03,9.23387519]
[1761844850872,11.48,184.04,184.03,21.272]
[1761844851071,11.48,184.04,184.0,0.78]
[1761844851295,11.48,184.04,184.01,8.55387519]
[1761844851474,17.1179238,184.04,184.0,0.78]
[1761844851685,11.48,184.04,184.0,0.1]
[1761844852080,5.6379238,184.01,184.0,0.1]
[1761844852618,5.95448725,184.01,184.0,0.1]
[1761844852771,9.92456276,184.03,184.0,0.1]
[1761844852972,11.48,184.02,184.0,0.1]
[1761844853469,0.52,184.01,184.0,0.1]
[1761844853669,12.0,184.01,184.0,0.1]
[1761844853977,17.6379238,184.01,184.0,0.1]
[1761844854173,37.35164247,184.01,184.0,0.1]
[1761844854410,32.86123874,184.01,184.0,0.1]
[1761844854723,4.49040373,184.01,184.0,0.1]
[1761844854890,17.1179238,184.01,184.0,0.1]
[1761844855396,15.77500796,184.01,184.0,0.1]
[1761844855796,21.41293176,184.01,184.0,0.1]
[1761844856022,15.77500796,184.01,184.0,0.1]
[1761844856318,21.22755924,184.01,184.0,0.1]
[1761844856470,23.09241105,184.01,184.0,0.1]
[1761844856675,21.22635735,184.01,184.0,0.1]
[1761844856892,17.1379238,184.01,184.0,0.1]
[1761844857092,2.84129259,184.03,184.0,0.1]
[1761844857499,48.37083384,184.07,184.0,6.4179238]
[1761844857500,37.65040373,184.07,184.0,6.4179238]
[1761844857688,17.2779238,184.06,184.0,6.21474234]
[1761844858088,5.6379238,184.05,184.0,6.21474234]
[1761844858291,32.64,184.07,184.02,5.6379238]
[1761844858491,11.64,184.06,184.03,5.6379238]
[1761844858876,32.64,184.07,184.05,5.6379238]
[1761844859090,32.64,184.07,184.06,5.6379238]
[1761844859291,44.28,184.07,184.06,5.6379238]
[1761844859492,17.2779238,184.07,184.01,31.06082769]
[1761844859701,11.64,184.07,184.01,21.272]
[1761844859887,11.64,184.07,184.02,0.68]
[1761844860296,17.2779238,184.07,184.03,5.43389664]
[1761844860492,11.64,184.07,184.03,5.43389664]
[1761844860703,11.64,184.07,184.04,0.68]
[1761844861011,17.2779238,184.07,184.04,0.68]
[1761844861187,11.64,184.07,184.04,0.68]
[1761844861386,17.2779238,184.07,184.04,0.68]
[1761844862046,11.64,184.07,184.04,0.68]
[1761844862321,20.592,184.12,184.05,9.78882769]
[1761844862322,4.49040373,184.12,184.05,9.78882769]
[1761844862511,5.01040373,184.16,184.07,5.6379238]
[1761844862716,5.6379238,184.11,184.07,0.68]
[1761844862915,11.62,184.1,184.07,0.68]
[1761844863297,17.2579238,184.1,184.07,0.68]
[1761844863500,5.6379238,184.08,184.04,21.272]
[1761844864025,11.62,184.1,184.05,0.68]
[1761844864198,5.6379238,184.07,184.05,0.68]
[1761844864517,11.62,184.06,184.03,6.11388172]
[1761844864704,11.62,184.05,184.03,5.43388172]
[1761844864914,5.6379238,184.11,184.06,20.592]
[1761844865219,4.49040373,184.19,184.1,5.6379238]
[1761844865405,4.49040373,184.22,184.13,5.6379238]
[1761844865610,11.62,184.18,184.11,0.68]
[1761844866423,5.6379238,184.16,184.11,0.68]
[1761844866726,11.62,184.18,184.11,0.68]
[1761844866727,5.6379238,184.15,184.11,6.11147713]
[1761844867023,0.52,184.21,184.11,11.74940093]
[1761844867024,11.62,184.14,184.11,11.74940093]
[1761844867197,5.6379238,184.17,184.11,11.74940093]
[1761844867198,11.62,184.13,184.12,6.3179238]
[1761844867797,27.92050612,184.23,184.12,6.3179238]
[1761844867798,23.43010239,184.23,184.12,6.3179238]
[1761844868097,5.6379238,184.17,184.13,0.68]
[1761844868295,5.6379238,184.15,184.1,20.592]
[1761844868495,17.2379238,184.14,184.1,20.592]
[1761844868722,17.2379238,184.14,184.09,0.68]
[1761844868723,5.6379238,184.12,184.09,0.68]
[1761844868927,11.6,184.11,183.97,0.2]
[1761844869100,5.6379238,184.06,184.03,0.68]
[1761844869315,11.6,184.05,184.04,20.592]
[1761844869718,0.52,184.13,184.04,21.302]
[1761844869913,5.6379238,184.1,184.05,0.71]
[1761844870115,11.6,184.09,184.05,6.3479238]
[1761844870315,5.01040373,184.16,184.07,5.43271581]
[1761844870316,11.6,184.08,184.07,5.43271581]
[1761844870515,5.6379238,184.12,184.07,5.43271581]
[1761844870723,5.6379238,184.1,184.07,0.71]
[1761844870936,11.6,184.09,184.07,0.71]
[1761844871142,17.2379238,184.09,184.07,0.71]
[1761844871440,17.2379238,184.09,184.03,0.71]
[1761844871441,5.6379238,184.08,184.03,0.71]
[1761844871743,5.6379238,184.04,184.03,0.71]
[1761844871940,5.6379238,184.04,184.0,0.1]
[1761844871941,17.2379238,184.04,184.0,0.1]
[1761844872110,5.6379238,184.01,184.0,0.1]
[1761844872514,11.59241105,184.01,184.0,0.1]
[1761844872827,14.91760279,184.01,184.0,0.1]
[1761844873014,27.07760279,184.01,184.0,0.1]
[1761844873966,20.592,183.98,183.97,1e-08]
[1761844874108,9.78882769,183.97,183.95,0.1]
[1761844874432,9.78882769,183.95,183.94,0.2]
[1761844874640,9.78882769,183.95,183.8,20.5991977]
[1761844874641,5.6379238,183.85,183.82,0.71]
[1761844874841,5.6379238,183.85,183.8,6.99760701]
[1761844874842,17.3379238,183.85,183.8,6.99760701]
[1761844875042,21.16880385,183.85,183.8,6.99760701]
[1761844875241,17.3379238,183.85,183.8,6.99760701]
[1761844875445,17.8579238,183.85,183.8,6.99760701]
[1761844876026,21.68405701,183.85,183.8,6.99760701]
[1761844876225,17.8579238,183.85,183.8,6.99760701]
[1761844876631,17.3579238,183.85,183.8,6.99760701]
[1761844876840,27.66675149,183.85,183.8,6.99760701]
[1761844877027,31.48693951,183.85,183.8,6.99760701]
[1761844877235,20.592,183.81,183.8,6.99760701]
[1761844877547,43.5878476,183.81,183.8,6.99760701]
[1761844877847,47.9033437,183.81,183.8,6.99760701]
[1761844878041,44.0878476,183.81,183.8,6.99760701]
[1761844878245,32.3878476,183.81,183.8,6.99760701]
[1761844878426,49.52824801,183.81,183.8,6.99760701]
[1761844879348,59.3170757,183.81,183.8,6.99760701]
[1761844879813,59.3170757,183.81,183.65,0.1]
[1761844879814,9.78882769,183.8,183.65,0.1]
[1761844880013,5.6379238,183.71,183.69,0.66]
[1761844880210,20.592,183.77,183.69,0.66]
[1761844880211,17.3379238,183.7,183.69,0.66]
[1761844880441,17.3379238,183.7,183.67,0.66]
[1761844880627,11.7,183.7,183.67,0.66]
[1761844881145,17.3379238,183.7,183.67,0.66]
[1761844881343,43.98505476,183.77,183.67,0.66]
[1761844881344,11.68,183.69,183.67,6.10447269]
[1761844881547,20.592,183.75,183.68,0.66]
[1761844881728,5.6379238,183.69,183.65,0.1]
[1761844881927,5.6379238,183.66,183.65,0.1]
[1761844882139,17.3179238,183.66,183.65,0.1]
[1761844882745,17.64484373,183.66,183.65,0.1]
[1761844882946,33.07159522,183.66,183.65,0.1]
[1761844883249,27.43367142,183.66,183.65,0.1]
[1761844883546,9.78882769,183.66,183.65,0.1]
[1761844883726,17.64484373,183.66,183.65,0.1]
[1761844883919,66.86217615,183.69,183.65,0.1]
[1761844883920,53.252,183.69,183.65,0.1]
[1761844884119,5.6379238,183.67,183.65,0.1]
[1761844884460,53.252,183.69,183.65,0.1]
[1761844884461,11.68,183.66,183.65,0.76]
[1761844884642,11.68,183.66,183.65,0.1]
[1761844885013,5.6379238,183.66,183.65,0.1]
[1761844885252,12.2,183.66,183.65,0.1]
[1761844885422,17.8379238,183.66,183.65,0.1]
[1761844885628,17.8379238,183.66,183.61,24.82300275]
[1761844885629,20.592,183.63,183.61,24.82300275]
[1761844886134,26.2299238,183.62,183.61,24.82300275]
[1761844886345,30.38082769,183.66,183.61,24.82300275]
[1761844886651,5.6379238,183.62,183.61,24.82300275]
[1761844886855,17.3179238,183.62,183.61,24.82300275]
[1761844887426,11.68,183.62,183.61,24.82300275]
[1761844887629,17.3179238,183.62,183.61,24.82300275]
[1761844888024,0.52,183.68,183.61,24.82300275]
[1761844888254,11.68,183.67,183.62,0.66]
[1761844888454,17.3179238,183.67,183.62,0.66]
[1761844888655,5.6379238,183.66,183.62,6.10601771]
[1761844888824,0.52,183.76,183.64,5.6379238]
[1761844889150,0.52,183.76,183.63,9.78882769]
[1761844889151,3.78,183.75,183.7,5.6379238]
[1761844889462,5.44010445,183.82,183.64,10.44882769]
[1761844889463,5.6379238,183.72,183.64,10.44882769]
[1761844889620,11.68,183.71,183.65,0.66]
[1761844889821,17.3179238,183.71,183.65,0.66]
[1761844890029,5.6379238,183.7,183.65,0.66]
[1761844890231,5.6379238,183.68,183.65,0.66]
[1761844890443,5.6379238,183.72,183.65,0.66]
[1761844890634,32.68,183.83,183.65,0.66]
[1761844890635,17.3179238,183.71,183.65,11.74306085]
[1761844890844,21.112,183.78,183.65,6.1051202]
[1761844890845,11.7,183.7,183.65,6.1051202]
[1761844891054,32.68,183.83,183.66,0.66]
[1761844891055,11.7,183.69,183.66,0.66]
[1761844891236,11.7,183.69,183.68,5.6379238]
[1761844891558,11.7,183.72,183.68,5.6379238]
[1761844891724,11.7,183.72,183.71,5.6379238]
[1761844892140,11.7,183.72,183.68,5.6379238]
[1761844892365,5.6379238,183.69,183.64,0.66]
[1761844892529,11.7,183.68,183.64,6.2979238]
[1761844892730,20.592,183.76,183.64,6.2979238]
[1761844892731,6.1014317,183.78,183.67,5.6379238]
[1761844892933,6.1014317,183.78,183.68,6.2979238]
[1761844892934,5.6379238,183.74,183.68,6.2979238]
[1761844893163,11.7,183.73,183.68,0.66]
[1761844893370,11.7,183.72,183.69,0.66]
[1761844893670,11.7,183.71,183.69,0.66]
[1761844893829,13.60264713,183.79,183.66,5.6379238]
[1761844893830,11.7,183.7,183.66,5.6379238]
[1761844894034,21.252,183.78,183.69,5.6379238]
[1761844894246,1.99999999,183.84,183.71,5.6379238]
[1761844894247,11.7,183.77,183.71,5.6379238]
[1761844894432,11.7,183.76,183.72,0.66]
[1761844894755,11.7,183.76,183.72,11.74091399]
[1761844894926,21.252,183.82,183.73,0.66]
[1761844895268,11.72,183.81,183.75,5.6379238]
[1761844895610,32.68,183.83,183.77,5.6379238]
[1761844895860,32.68,183.83,183.78,6.2979238]
[1761844895861,11.7,183.8,183.78,6.2979238]
[1761844896073,32.68,183.83,183.79,5.6379238]
[1761844896232,11.72,183.79,183.73,20.592]
[1761844896435,11.72,183.79,183.72,5.6379238]
[1761844896765,5.6379238,183.78,183.73,0.66]
[1761844897139,11.72,183.79,183.73,0.66]
[1761844897359,11.72,183.79,183.73,6.2979238]
[1761844897533,11.72,183.79,183.6,1.99999999]
[1761844897534,32.312,183.79,183.6,1.99999999]
[1761844897728,32.312,183.79,183.6,5.6379238]
[1761844897729,20.592,183.76,183.6,5.6379238]
[1761844897961,20.592,183.73,183.62,0.66]
[1761844898269,5.6379238,183.7,183.63,5.6379238]
[1761844898432,12.06,183.69,183.62,0.66]
[1761844898636,5.44425087,183.68,183.62,0.66]
[1761844898848,5.6379238,183.63,183.62,0.66]
[1761844899160,5.6379238,183.65,183.62,0.66]
[1761844899403,0.69,183.75,183.62,6.1059738]
[1761844899589,5.6379238,183.71,183.63,5.6379238]
[1761844899917,5.6379238,183.71,183.63,0.71]
[1761844900071,12.06,183.74,183.64,0.71]
[1761844900270,5.6379238,183.69,183.64,0.71]
[1761844900464,39.639644,183.75,183.64,0.71]
[1761844900465,5.6379238,183.67,183.64,0.71]
[1761844900663,12.06,183.66,183.64,0.71]
[1761844901085,5.6379238,183.68,183.64,0.71]
[1761844901292,12.04,183.67,183.64,0.71]
[1761844901503,12.04,183.66,183.64,0.71]
[1761844901800,12.04,183.66,183.61,24.82300275]
[1761844901969,5.6379238,183.69,183.63,0.71]
[1761844902297,5.6379238,183.7,183.63,0.71]
[1761844902504,12.04,183.69,183.63,0.71]
[1761844902707,5.6379238,183.64,183.61,24.82300275]
[1761844902877,5.6379238,183.62,183.61,24.82300275]
[1761844903067,13.61151555,183.67,183.61,24.82300275]
[1761844903272,12.75,183.66,183.61,24.82300275]
[1761844903663,5.6379238,183.62,183.61,24.82300275]
[1761844903886,17.6979238,183.62,183.61,24.82300275]
[1761844904205,12.06,183.62,183.61,24.82300275]
[1761844904368,12.04,183.62,183.61,24.82300275]
[1761844904699,17.6779238,183.62,183.61,24.82300275]
[1761844904999,12.04,183.62,183.61,24.82300275]
[1761844905201,23.12395364,183.62,183.61,24.82300275]
[1761844905565,17.6779238,183.62,183.61,24.82300275]
[1761844905884,17.6779238,183.62,183.61,25.53300275]
[1761844906571,12.04,183.62,183.61,25.53300275]
[1761844906787,5.44395448,183.69,183.61,25.53300275]
[1761844906990,5.6379238,183.67,183.62,0.71]
[1761844907189,12.02,183.66,183.62,0.71]
[1761844907389,5.6379238,183.68,183.62,0.71]
[1761844907601,12.02,183.67,183.62,0.71]
[1761844907785,17.6579238,183.67,183.62,0.71]
[1761844908180,19.05078451,183.72,183.62,0.71]
[1761844908181,5.6379238,183.68,183.62,0.71]
[1761844908392,12.02,183.67,183.62,6.3479238]
[1761844908601,12.02,183.66,183.62,0.71]
[1761844908800,12.02,183.65,183.63,0.71]
[1761844909704,12.02,183.64,183.63,0.71]
[1761844911204,12.02,183.64,183.61,24.82300275]
[1761844911513,5.6379238,183.62,183.61,24.82300275]
[1761844911681,5.6379238,183.63,183.61,24.82300275]
[1761844911879,0.69,183.7,183.62,0.71]
[1761844912111,17.46395448,183.69,183.62,0.71]
[1761844912285,5.6379238,183.66,183.62,0.71]
[1761844912901,0.69,183.7,183.63,5.6379238]
[1761844912902,5.6379238,183.7,183.63,5.6379238]
[1761844913099,12.02,183.69,183.63,5.6379238]
[1761844913289,12.02,183.69,183.64,0.71]
[1761844913492,20.6202057,183.69,183.64,0.71]
[1761844913998,8.6002057,183.69,183.64,0.71]
[1761844914187,12.0,183.68,183.64,0.71]
[1761844914406,8.6002057,183.65,183.61,24.82300275]
[1761844914716,8.6002057,183.63,183.61,24.82300275]
[1761844914891,8.6002057,183.63,183.61,25.53300275]
[1761844915092,12.04,183.62,183.61,25.53300275]
[1761844915296,20.6402057,183.62,183.61,24.82300275]
[1761844915714,20.6402057,183.62,183.61,25.53300275]
[1761844915715,12.04,183.62,183.61,25.53300275]
[1761844916011,12.02,183.63,183.61,25.53300275]
[1761844916209,12.02,183.62,183.61,25.53300275]
[1761844916416,12.02,183.62,183.61,24.82300275]
[1761844916720,12.02,183.66,183.61,52.48535103]
[1761844916888,12.02,183.66,183.65,8.6002057]
[1761844917088,12.02,183.66,183.62,0.71]
[1761844917089,12.02,183.66,183.64,8.6002057]
[1761844917416,8.6002057,183.72,183.65,9.3102057]
[1761844917588,12.02,183.71,183.67,8.6002057]
[1761844917986,12.02,183.71,183.68,0.71]
[1761844918623,12.0,183.7,183.68,0.71]
[1761844918824,4.47523362,183.73,183.69,8.6002057]
[1761844918990,12.0,183.72,183.69,8.6002057]
[1761844919189,12.0,183.72,183.7,0.71]
[1761844919515,16.47523362,183.72,183.7,0.71]
[1761844919893,12.0,183.72,183.7,0.71]
[1761844920315,4.46151438,183.73,183.71,8.6002057]
[1761844920523,2.80151438,183.74,183.72,8.6002057]
[1761844920691,8.95246736,183.79,183.74,9.78882769]
[1761844920692,5.94200615,183.79,183.74,9.78882769]
[1761844920885,12.0,183.79,183.78,8.6002057]
[1761844921092,5.94200615,183.81,183.78,8.6002057]
[1761844921400,38.62200615,183.83,183.8,8.6002057]
[1761844921724,12.0,183.82,183.78,20.592]
[1761844921932,12.0,183.82,183.8,8.6002057]
[1761844922085,12.0,183.82,183.78,20.592]
[1761844922285,12.0,183.82,183.81,8.6002057]
[1761844922493,12.0,183.82,183.78,20.592]
[1761844922702,5.94200615,183.84,183.8,8.6002057]
[1761844922920,12.0,183.81,183.8,8.6002057]
[1761844923122,12.0,183.81,183.78,8.6002057]
[1761844923624,12.0,183.81,183.76,5.44183371]
[1761844924120,8.6002057,183.77,183.7,5.44365813]
[1761844924287,12.67,183.76,183.69,8.6002057]
[1761844924495,8.6002057,183.74,183.68,8.6002057]
[1761844924695,8.6002057,183.71,183.66,8.6002057]
[1761844924995,55.3643495,183.81,183.7,8.6002057]
[1761844924996,0.69,183.79,183.7,8.6002057]
[1761844925198,11.98,183.78,183.73,8.6002057]
[1761844925892,12.67,183.78,183.73,8.6002057]
[1761844926207,12.67,183.78,183.68,9.78882769]
[1761844926517,12.67,183.78,183.73,8.6002057]
[1761844926824,8.6002057,183.79,183.74,8.6002057]
[1761844927024,8.6002057,183.75,183.62,5.44602984]
[1761844927326,11.96,183.74,183.69,8.6002057]
[1761844927623,5.44111916,183.79,183.64,9.78882769]
[1761844927624,11.96,183.73,183.7,20.592]
[1761844927794,11.96,183.74,183.72,8.6002057]
[1761844928097,8.6002057,183.8,183.73,8.6002057]
[1761844928298,11.96,183.79,183.74,8.6002057]
[1761844928509,8.6002057,183.78,183.72,8.6002057]
[1761844928725,8.6002057,183.77,183.72,8.6002057]
[1761844928893,8.6002057,183.75,183.7,8.6002057]
[1761844929088,11.94,183.74,183.7,8.6002057]
[1761844929733,11.94,183.74,183.67,8.6002057]
[1761844929734,8.6002057,183.72,183.67,8.6002057]
[1761844930031,0.68,183.73,183.67,61.7]
[1761844930032,8.6002057,183.71,183.67,61.7]
[1761844930237,11.94,183.7,183.67,70.3002057]
[1761844930406,11.94,183.7,183.63,19.05999768]
[1761844930606,11.94,183.7,183.65,20.592]
[1761844930826,11.94,183.7,183.67,8.6002057]
[1761844931029,8.6002057,183.75,183.69,8.6002057]
[1761844931229,0.68,183.76,183.71,8.6002057]
[1761844931411,20.5402057,183.75,183.7,8.6002057]
[1761844931619,12.62,183.75,183.69,8.6002057]
[1761844931828,21.2202057,183.75,183.7,8.6002057]
[1761844932432,5.44189048,183.76,183.65,26.03710542]
[1761844932433,8.6002057,183.73,183.65,26.03710542]
[1761844932647,9.2802057,183.73,183.67,8.6002057]
[1761844933169,11.94,183.72,183.67,8.6002057]
[1761844933350,14.04305445,183.73,183.67,8.6002057]
[1761844933642,11.92,183.71,183.65,26.03704832]
[1761844933841,11.92,183.71,183.68,8.6002057]
[1761844934016,11.92,183.7,183.68,8.6002057]
[1761844934216,11.92,183.69,183.68,8.6002057]
[1761844934407,8.6002057,183.74,183.68,8.6002057]
[1761844934610,12.6,183.73,183.62,9.78882769]
[1761844934839,8.6002057,183.67,183.61,24.82300275]
[1761844935041,5.44514021,183.65,183.61,24.82300275]
[1761844935218,20.5202057,183.64,183.61,24.82300275]
[1761844935427,8.6002057,183.63,183.61,24.82300275]
[1761844935668,8.6002057,183.62,183.61,24.82300275]
[1761844935808,9.2802057,183.62,183.61,24.10300275]
[1761844936010,0.68,183.62,183.61,24.10300275]
[1761844936531,21.1802057,183.62,183.61,24.10300275]
[1761844937277,26.62623554,183.62,183.61,24.10300275]
[1761844937853,21.1802057,183.62,183.61,24.10300275]
[1761844938063,14.72533983,183.66,183.61,24.10300275]
[1761844938276,8.6002057,183.64,183.61,24.10300275]
[1761844938446,6.12513413,183.66,183.61,24.10300275]
[1761844938447,9.2802057,183.63,183.61,24.10300275]
[1761844938855,19.05724346,183.66,183.61,24.10300275]
[1761844938856,11.9,183.62,183.61,24.10300275]
[1761844940279,11.9,183.62,183.61,32.70320845]
[1761844940488,7.79837648,183.74,183.61,32.70320845]
[1761844940489,0.68,183.7,183.61,33.42320845]
[1761844940725,9.2802057,183.72,183.66,8.6002057]
[1761844940978,17.9402057,183.71,183.66,8.6002057]
[1761844941156,17.9402057,183.71,183.65,8.6002057]
[1761844941355,9.2802057,183.7,183.64,8.6002057]
[1761844941568,9.2802057,183.7,183.65,8.6002057]
[1761844941773,0.68,183.69,183.65,8.6002057]
[1761844941958,9.2802057,183.69,183.63,8.6002057]
[1761844942369,0.68,183.68,183.61,12.02341415]
[1761844942688,11.88,183.67,183.62,8.6002057]
[1761844942858,20.592,183.76,183.62,8.6002057]
[1761844943059,14.72367715,183.71,183.65,8.6002057]
[1761844943371,14.72367715,183.71,183.63,5.44561387]
[1761844943372,8.6002057,183.69,183.63,8.6002057]
[1761844943553,8.6002057,183.68,183.62,8.6002057]
[1761844943886,0.68,183.69,183.62,8.6002057]
[1761844944181,8.6002057,183.68,183.62,8.6002057]
[1761844944385,8.6002057,183.68,183.61,3.42320845]
[1761844944605,0.68,183.69,183.65,8.6002057]
[1761844944804,0.68,183.72,183.67,8.6002057]
[1761844944978,11.86,183.71,183.67,8.6002057]
[1761844945290,25.90359375,183.71,183.65,8.6002057]
[1761844945501,11.86,183.7,183.65,8.6002057]
[1761844945682,0.68,183.69,183.64,8.6002057]
[1761844946168,0.68,183.69,183.61,22.48532108]
[1761844946368,0.68,183.69,183.65,8.6002057]
[1761844946599,11.84,183.68,183.65,8.6002057]
[1761844946978,11.84,183.68,183.66,8.6002057]
[1761844947279,5.44369261,183.7,183.61,3.42320845]
[1761844947480,8.6002057,183.68,183.62,8.6002057]
[1761844947795,8.6002057,183.67,183.61,12.02341415]
[1761844947988,9.2802057,183.68,183.62,8.6002057]
[1761844948377,8.6002057,183.68,183.62,8.6002057]
[1761844948585,8.6002057,183.68,183.61,3.42320845]
[1761844948586,0.68,183.67,183.61,3.42320845]
[1761844948799,8.6002057,183.64,183.61,3.42320845]
[1761844948970,11.86,183.63,183.61,3.42320845]
[1761844949171,17.98576402,183.63,183.61,3.42320845]
[1761844949572,11.86,183.63,183.61,3.42320845]
[1761844949773,0.68,183.62,183.61,3.42320845]
[1761844950096,9.2802057,183.62,183.61,3.42320845]
[1761844950597,9.2802057,183.62,183.61,2.70320845]
[1761844950970,0.68,183.62,183.61,2.70320845]
[1761844951172,26.56623554,183.62,183.61,2.70320845]
[1761844951877,40.18131015,183.62,183.51,8.6002057]
[1761844952080,8.6002057,183.58,183.52,8.6002057]
[1761844952301,11.84,183.57,183.49,8.93978224]
[1761844952594,0.68,183.56,183.49,8.93978224]
[1761844952776,0.68,183.56,183.51,8.6002057]
[1761844953093,11.84,183.55,183.49,14.38964838]
[1761844953293,3.52787268,183.59,183.53,8.6002057]
[1761844953470,11.82,183.58,183.53,8.6002057]
[1761844953669,11.82,183.58,183.5,6.16958399]
[1761844953885,11.82,183.58,183.49,8.93978224]
[1761844953886,0.68,183.57,183.52,8.6002057]
[1761844954173,2.84787268,183.59,183.56,8.6002057]
[1761844954401,11.88,183.58,183.56,8.6002057]
[1761844954692,11.88,183.58,183.5,62.42]
[1761844954693,11.88,183.58,183.57,8.6002057]
[1761844955402,11.88,183.58,183.52,0.72]
[1761844955574,11.88,183.57,183.56,8.6002057]
[1761844955776,11.9,183.57,183.56,9.3202057]
[1761844956097,11.9,183.57,183.56,8.6002057]
[1761844957209,5.44780998,183.56,183.52,8.6002057]
[1761844957404,11.9,183.57,183.54,8.6002057]
[1761844957702,11.9,183.57,183.55,8.6002057]
[1761844958069,11.9,183.57,183.54,8.6002057]
[1761844958297,11.9,183.57,183.53,8.6002057]
[1761844958487,11.9,183.57,183.54,8.6002057]
[1761844958692,11.9,183.57,183.55,8.6002057]
[1761844959002,11.9,183.57,183.5,0.72]
[1761844959003,0.68,183.59,183.56,8.6002057]
[1761844959193,11.9,183.56,183.5,0.72]
[1761844959391,11.9,183.56,183.54,8.6002057]
[1761844959992,11.9,183.56,183.55,8.6002057]
[1761844960297,11.9,183.56,183.53,8.6002057]
[1761844960502,5.44751321,183.57,183.53,8.6002057]
[1761844960708,11.9,183.56,183.54,8.6002057]
[1761844961381,0.66,183.56,183.49,29.53178224]
[1761844961579,11.9,183.55,183.53,8.6002057]
[1761844961789,0.66,183.56,183.53,8.6002057]
[1761844962102,8.6002057,183.59,183.51,0.68]
[1761844962103,11.9,183.55,183.51,0.68]
[1761844962415,11.9,183.54,183.49,34.98159693]
[1761844962702,11.9,183.53,183.49,8.93978224]
[1761844962900,12.56,183.53,183.49,8.93978224]
[1761844963099,0.66,183.52,183.49,8.93978224]
[1761844963300,14.04950001,183.51,183.49,8.93978224]
[1761844963500,14.70927334,183.52,183.49,8.93978224]
[1761844963806,5.44906764,183.52,183.49,8.93978224]
[1761844963976,11.9,183.51,183.49,8.93978224]
[1761844964182,11.9,183.5,183.49,17.53998794]
[1761844964510,14.04829516,183.56,183.49,23.66982098]
[1761844964702,11.9,183.55,183.5,8.6002057]
[1761844964899,11.92,183.54,183.5,8.6002057]
[1761844965299,11.92,183.54,183.49,8.93978224]
[1761844965300,18.02858802,183.54,183.49,8.93978224]
[1761844965503,18.02858802,183.54,183.49,17.53998794]
[1761844965684,0.66,183.53,183.49,8.93978224]
[1761844965883,8.6002057,183.51,183.49,8.93978224]
[1761844966187,20.5002057,183.5,183.49,8.93978224]
[1761844966580,21.1602057,183.5,183.49,8.93978224]
[1761844966782,11.9,183.5,183.49,8.93978224]
[1761844967210,21.1602057,183.5,183.49,8.93978224]
[1761844967510,26.60979698,183.5,183.49,8.93978224]
[1761844967902,26.60979698,183.5,183.49,8.21978224]
[1761844968232,36.39862467,183.5,183.49,8.21978224]
[1761844968382,26.60979698,183.5,183.49,8.21978224]
[1761844968782,36.39862467,183.5,183.49,8.21978224]
[1761844970179,24.49862467,183.5,183.49,1e-08]
[1761844970383,36.39862467,183.5,183.49,1e-08]
[1761844971004,15.89841897,183.5,183.49,1e-08]
[1761844971186,56.99062467,183.5,183.49,1e-08]
[1761844971386,56.99062467,183.5,183.45,0.08832288]
[1761844971387,5.45077946,183.46,183.45,0.08832288]
[1761844971681,37.96277946,183.46,183.45,0.08832288]
[1761844971882,12.58,183.46,183.45,0.08832288]
[1761844972585,21.1802057,183.46,183.45,0.08832288]